bitfinex-derivatives/quotes_BTCF0:USTF0_20250630
["timestamp","ask_amount","ask_price","bid_price","bid_amount"]
[1751313790399,1.02595508,107630.0,107620.0,0.00192915]
[1751313790596,0.99555508,107630.0,107620.0,0.00192915]
[1751313790899,1.84575508,107630.0,107620.0,0.00192915]
[1751313791102,1.84551508,107630.0,107620.0,0.03312915]
[1751313791998,1.53014692,107630.0,107620.0,0.03312915]
[1751313792202,1.84551508,107630.0,107620.0,0.03312915]
[1751313794296,1.59243508,107630.0,107620.0,0.21894045]
[1751313794501,1.19819508,107630.0,107620.0,0.23551792]
[1751313794700,1.19819508,107630.0,107620.0,0.26741792]
[1751313795098,0.60215508,107630.0,107620.0,0.26741792]
[1751313795294,1.09811508,107630.0,107620.0,0.65579658]
[1751313797203,1.19811508,107630.0,107620.0,0.65579658]
[1751313799500,1.59181508,107630.0,107620.0,0.10918528]
[1751313799701,1.59181508,107630.0,107620.0,0.04970662]
[1751313800205,1.62221508,107630.0,107620.0,0.04970662]
[1751313800999,1.62221508,107630.0,107620.0,0.01850662]
[1751313801303,1.65221508,107630.0,107620.0,0.01850662]
[1751313801695,1.65221508,107630.0,107620.0,0.00192915]
[1751313801901,0.1858113,107620.0,107610.0,0.14000141]
[1751313802100,0.1858286,107610.0,107600.0,0.08142075]
[1751313802299,1.96440138,107610.0,107600.0,0.0587341]
[1751313802705,1.64903322,107610.0,107600.0,0.0587341]
[1751313803904,1.64903322,107610.0,107600.0,0.21679088]
[1751313804205,1.53875322,107610.0,107600.0,0.20279794]
[1751313804504,1.53875322,107610.0,107600.0,0.23319794]
[1751313804505,1.89955322,107610.0,107600.0,0.23319794]
[1751313804712,0.96249322,107610.0,107600.0,0.23319794]
[1751313805009,1.44829322,107610.0,107600.0,0.26459794]
[1751313805308,0.78336506,107610.0,107600.0,0.33804802]
[1751313805601,0.78336506,107610.0,107600.0,0.35202276]
[1751313806105,1.09873322,107610.0,107600.0,0.35202276]
[1751313808004,1.09973322,107610.0,107600.0,0.35202276]
[1751313808707,1.19973322,107610.0,107600.0,0.35202276]
[1751313811410,1.19973322,107610.0,107600.0,0.71282276]
[1751313811812,1.19973322,107610.0,107600.0,0.35202276]
[1751313815209,0.60269322,107610.0,107600.0,0.35202276]
[1751313817316,0.28732506,107610.0,107600.0,0.35202276]
[1751313817514,0.60269322,107610.0,107600.0,0.35202276]
[1751313820319,0.63509322,107610.0,107600.0,0.32062276]
[1751313820511,0.69999322,107610.0,107600.0,0.32062276]
[1751313821518,0.69999322,107610.0,107600.0,0.30664802]
[1751313822315,0.70048968,107610.0,107600.0,0.30664802]
[1751313822514,0.70048968,107610.0,107600.0,0.27624802]
[1751313822916,1.06128968,107610.0,107600.0,0.27624812]
[1751313824122,1.06128968,107610.0,107600.0,0.20279804]
[1751313826423,0.74592152,107610.0,107600.0,0.20279804]
[1751313826624,1.06128968,107610.0,107600.0,0.20279804]
[1751313827620,1.06128968,107610.0,107600.0,0.1858459]
[1751313829624,0.1858459,107600.0,107590.0,0.76401098]
[1751313829821,1.22867406,107600.0,107590.0,0.7781104]
[1751313830025,1.23844916,107600.0,107590.0,0.7781104]
[1751313830626,1.23717052,107600.0,107590.0,0.7781104]
[1751313831530,1.23717052,107600.0,107590.0,0.81478999]
[1751313832928,1.55253868,107600.0,107590.0,0.67333609]
[1751313833127,1.26837052,107600.0,107590.0,0.67333609]
[1751313833327,1.6386032,107600.0,107590.0,0.12667289]
[1751313833527,1.6386032,107600.0,107590.0,0.0899933]
[1751313834023,1.6386032,107600.0,107590.0,0.2758565]
[1751313834226,1.95397136,107600.0,107590.0,0.2758565]
[1751313834421,1.95397136,107600.0,107590.0,0.27599866]
[1751313834833,1.95397136,107600.0,107590.0,0.05185058]
[1751313835031,1.95397136,107600.0,107590.0,0.01517099]
[1751313836735,1.95397136,107600.0,107590.0,0.00092941]
[1751313837436,0.1858632,107590.0,107580.0,0.03667959]
[1751313837737,1.30437136,107590.0,107580.0,0.01429353]
[1751313837933,0.9890032,107590.0,107580.0,0.01429353]
[1751313838126,1.30486782,107590.0,107580.0,0.01429353]
[1751313839336,1.31086782,107590.0,107580.0,0.01429353]
[1751313839536,0.1858804,107580.0,107570.0,0.1544385]
[1751313839737,1.59012856,107580.0,107570.0,0.16876625]
[1751313840128,1.27525686,107580.0,107570.0,0.35466395]
[1751313840331,1.59062502,107580.0,107570.0,0.35466395]
[1751313841038,1.59462502,107580.0,107570.0,0.35466395]
[1751313841642,1.59462502,107580.0,107570.0,0.01432775]
[1751313841841,1.62692502,107580.0,107570.0,0.01432775]
[1751313842034,1.62692502,107580.0,107570.0,0.20022545]
[1751313842230,1.62692502,107580.0,107570.0,0.23162545]
[1751313842940,1.59462502,107580.0,107570.0,0.30530992]
[1751313843136,0.99714502,107580.0,107570.0,0.30530992]
[1751313843340,1.84450502,107580.0,107570.0,0.33720992]
[1751313848052,1.52913686,107580.0,107570.0,0.33720992]
[1751313848252,1.84450502,107580.0,107570.0,0.33720992]
[1751313850553,1.81390502,107580.0,107570.0,0.33720992]
[1751313855257,1.81440148,107580.0,107570.0,0.33720992]
[1751313857253,1.81440148,107580.0,107570.0,0.15131222]
[1751313857854,1.84520148,107580.0,107570.0,0.0314]
[1751313858154,1.87630148,107580.0,107570.0,0.0314]
[1751313858354,1.84520148,107580.0,107570.0,0.04560175]
[1751313858856,1.86843148,107580.0,107570.0,0.04560175]
[1751313860659,1.89953148,107580.0,107570.0,0.04560175]
[1751313862252,1.89953148,107580.0,107570.0,0.04570728]
[1751313865162,1.86843148,107580.0,107570.0,0.04570728]
[1751313865558,1.86843148,107580.0,107570.0,0.07810728]
[1751313867063,1.86843148,107580.0,107570.0,0.04570728]
[1751313867562,1.89953148,107580.0,107570.0,0.04570728]
[1751313869660,1.86843148,107580.0,107570.0,0.04570728]
[1751313871065,1.89873148,107580.0,107570.0,0.04570728]
[1751313871966,1.89873148,107580.0,107570.0,0.01430728]
[1751313873665,0.1858977,107570.0,107560.0,0.23737053]
[1751313873967,0.1858977,107570.0,107560.0,0.33172658]
[1751313873968,0.99406586,107570.0,107560.0,0.33172658]
[1751313874160,0.99456232,107570.0,107560.0,0.33172658]
[1751313875272,0.99756232,107570.0,107560.0,0.29504699]
[1751313876368,0.96556232,107570.0,107560.0,0.29504699]
[1751313876865,1.01880232,107570.0,107560.0,0.29504699]
[1751313880270,1.01880232,107570.0,107560.0,0.26284699]
[1751313881774,1.17903418,107570.0,107560.0,0.26284699]
[1751313882668,1.77495418,107570.0,107560.0,0.44876199]
[1751313882871,1.77495418,107570.0,107560.0,0.47876199]
[1751313883870,1.6163743,107570.0,107560.0,0.47876199]
[1751313884973,1.5863743,107570.0,107560.0,0.47876199]
[1751313885470,1.1255743,107570.0,107560.0,0.47876199]
[1751313886366,1.2255743,107570.0,107560.0,0.47876199]
[1751313887172,1.2255743,107570.0,107560.0,0.4509438]
[1751313888375,1.22607076,107570.0,107560.0,0.4509438]
[1751313890274,1.58687076,107570.0,107560.0,0.4509438]
[1751313894379,1.58687076,107570.0,107560.0,0.43658775]
[1751313894574,1.61797076,107570.0,107560.0,0.40658775]
[1751313894771,1.68137076,107570.0,107560.0,0.40658775]
[1751313895987,1.02205076,107570.0,107560.0,0.40658775]
[1751313896277,1.61777076,107570.0,107560.0,0.34268775]
[1751313896478,0.285915,107560.0,107550.0,0.06929238]
[1751313896678,0.1859323,107550.0,107540.0,0.38018642]
[1751313896878,1.59053244,107550.0,107540.0,0.6932698]
[1751313897280,1.83997244,107550.0,107540.0,0.58218457]
[1751313897488,1.8404689,107550.0,107540.0,0.53571247]
[1751313897671,1.8721689,107550.0,107540.0,0.53571247]
[1751313898081,1.8721689,107550.0,107540.0,0.56681247]
[1751313899382,1.8721689,107550.0,107540.0,0.53013288]
[1751313899585,1.8721689,107550.0,107540.0,0.56681247]
[1751313900389,1.8404689,107550.0,107540.0,0.56681247]
[1751313900883,0.6034489,107550.0,107540.0,0.60011247]
[1751313901188,1.1990889,107550.0,107540.0,0.60011247]
[1751313901388,1.5598889,107550.0,107540.0,0.60011247]
[1751313901589,1.1990889,107550.0,107540.0,0.56343288]
[1751313901784,1.0990889,107550.0,107540.0,0.60011247]
[1751313902384,1.0990889,107550.0,107540.0,0.60111247]
[1751313903287,0.18642876,107550.0,107540.0,0.60111247]
[1751313903496,0.59609646,107550.0,107540.0,1.27893261]
[1751313903684,0.59609646,107550.0,107540.0,1.33397786]
[1751313903880,0.00049646,107550.0,107540.0,1.33397786]
[1751313904089,0.00049646,107550.0,107540.0,1.04598177]
[1751313904288,0.00049646,107550.0,107540.0,1.36300191]
[1751313905491,0.00049646,107550.0,107540.0,1.32632232]
[1751313905992,0.8279693,107560.0,107550.0,0.1859323]
[1751313906193,0.8279693,107560.0,107550.0,1.01069976]
[1751313907094,0.8279693,107560.0,107550.0,0.69367962]
[1751313907487,0.8289293,107560.0,107550.0,0.69367962]
[1751313908196,0.2334093,107560.0,107550.0,0.69367962]
[1751313908395,0.27936006,107570.0,107560.0,0.185915]
[1751313908595,0.97484006,107570.0,107560.0,0.26424904]
[1751313908997,0.97484006,107570.0,107560.0,0.249715]
[1751313909193,1.2918602,107570.0,107560.0,0.249715]
[1751313909895,1.3151002,107570.0,107560.0,0.249715]
[1751313911814,1.0362366,107570.0,107560.0,0.249715]
[1751313912518,1.2221343,107570.0,107560.0,0.249715]
[1751313912709,0.90711416,107570.0,107560.0,0.249715]
[1751313913818,1.2241343,107570.0,107560.0,0.249715]
[1751313914204,0.90711416,107570.0,107560.0,0.249715]
[1751313916116,1.2241343,107570.0,107560.0,0.249715]
[1751313916723,1.2554343,107570.0,107560.0,0.249715]
[1751313918322,1.2554343,107570.0,107560.0,0.217515]
[1751313918520,0.6599543,107570.0,107560.0,0.217515]
[1751313925324,0.34293416,107570.0,107560.0,0.217515]
[1751313925524,0.6599543,107570.0,107560.0,0.217515]
[1751313925721,0.58066529,107570.0,107560.0,0.217515]
[1751313932927,0.94146529,107570.0,107560.0,0.217515]
[1751313934833,0.70373416,107570.0,107560.0,0.217515]
[1751313935034,0.94146529,107570.0,107560.0,0.217515]
[1751313935232,0.58066529,107570.0,107560.0,0.217515]
[1751313935532,0.94146529,107570.0,107560.0,0.217515]
[1751313936734,0.94146529,107570.0,107560.0,0.45524613]
[1751313937033,0.58066529,107570.0,107560.0,0.45524613]
[1751313937236,0.63636364,107570.0,107560.0,0.45524613]
[1751313937731,0.63636364,107570.0,107560.0,0.48714613]
[1751313942138,0.39863251,107570.0,107560.0,0.48714613]
[1751313942438,0.63636364,107570.0,107560.0,0.48714613]
[1751313943438,1.23096364,107570.0,107560.0,0.84794613]
[1751313943833,1.23096364,107570.0,107560.0,0.610215]
[1751313944026,1.23096364,107570.0,107560.0,0.84794613]
[1751313944226,0.18143481,107570.0,107560.0,0.84794613]
[1751313944431,0.02573646,107570.0,107560.0,1.43021061]
[1751313944732,0.21163416,107570.0,107560.0,1.10021061]
[1751313944934,0.44936529,107570.0,107560.0,0.86247948]
[1751313945331,0.44936529,107570.0,107560.0,0.62474803]
[1751313945638,0.26346759,107570.0,107560.0,0.86247916]
[1751313946137,0.02573646,107570.0,107560.0,1.10021029]
[1751313946334,0.21163416,107570.0,107560.0,1.08567726]
[1751313946531,0.02573646,107570.0,107560.0,1.08567726]
[1751313946930,0.02573646,107570.0,107560.0,1.13732277]
[1751313947532,0.02573646,107570.0,107560.0,1.49732277]
[1751313947742,1.19714978,107580.0,107570.0,0.1858977]
[1751313947743,1.06453753,107580.0,107570.0,0.1858977]
[1751313947933,1.06453753,107580.0,107570.0,0.87832883]
[1751313948630,0.7802551,107580.0,107570.0,0.87832883]
[1751313949131,1.44596318,107590.0,107580.0,0.1858804]
[1751313949331,1.54596318,107590.0,107580.0,0.25966952]
[1751313949532,1.54596318,107590.0,107580.0,0.49740065]
[1751313949733,0.87457458,107590.0,107580.0,0.49740065]
[1751313949932,1.46885458,107590.0,107580.0,0.49740065]
[1751313950133,0.87457458,107590.0,107580.0,0.49740065]
[1751313950333,1.46885458,107590.0,107580.0,0.49740065]
[1751313950629,0.05569835,107590.0,107580.0,1.09593178]
[1751313950834,0.05818753,107600.0,107590.0,0.1858631]
[1751313951037,0.00244,107600.0,107590.0,1.43662536]
[1751313951338,0.00244,107600.0,107590.0,1.45325961]
[1751313951535,0.00244,107600.0,107590.0,1.21552848]
[1751313951736,0.00244,107600.0,107590.0,2.08461209]
[1751313951943,0.26893113,107620.0,107610.0,0.1858286]
[1751313952239,0.26893113,107620.0,107610.0,0.78435973]
[1751313952240,0.55474243,107620.0,107610.0,0.78435973]
[1751313952437,0.55474243,107620.0,107610.0,0.87575973]
[1751313952834,0.33773113,107620.0,107610.0,0.87575973]
[1751313953240,0.52354243,107620.0,107610.0,0.87575973]
[1751313953445,0.52354243,107620.0,107610.0,0.6380286]
[1751313953642,0.55494243,107620.0,107610.0,0.6380286]
[1751313953842,0.44807616,107620.0,107610.0,0.6380286]
[1751313954043,0.1394,107620.0,107610.0,0.6380286]
[1751313954252,0.3252113,107620.0,107610.0,0.6380286]
[1751313954550,0.3192113,107620.0,107610.0,0.6380286]
[1751313955144,0.63588746,107620.0,107610.0,0.6380286]
[1751313955854,0.1334,107620.0,107610.0,0.6380286]
[1751313956152,0.3192113,107620.0,107610.0,0.6380286]
[1751313956950,0.3192113,107620.0,107610.0,0.71283192]
[1751313958453,0.1334,107620.0,107610.0,0.71283192]
[1751313958654,0.102,107620.0,107610.0,0.71283192]
[1751313959370,0.102,107620.0,107610.0,1.02950808]
[1751313960061,0.002,107620.0,107610.0,1.39030808]
[1751313960467,0.002,107620.0,107610.0,1.76030808]
[1751313961568,0.1867941,107630.0,107620.0,0.1858113]
[1751313961866,0.2867941,107630.0,107620.0,0.92628746]
[1751313962271,0.2867941,107630.0,107620.0,0.6096113]
[1751313963063,0.2917941,107630.0,107620.0,0.6096113]
[1751313963965,0.3230941,107630.0,107620.0,0.6096113]
[1751313964770,0.2230941,107630.0,107620.0,0.6096113]
[1751313966063,0.63977026,107630.0,107620.0,0.6096113]
[1751313968071,0.63977026,107630.0,107620.0,0.2488113]
[1751313968371,0.63977026,107630.0,107620.0,0.6096113]
[1751313968676,0.3230941,107630.0,107620.0,0.6096113]
[1751313968875,0.63977026,107630.0,107620.0,0.6096113]
[1751313969067,0.3230941,107630.0,107620.0,0.6096113]
[1751313973370,0.2917941,107630.0,107620.0,0.6096113]
[1751313973576,0.1917941,107630.0,107620.0,0.6096113]
[1751313973771,0.1917941,107630.0,107620.0,0.92628746]
[1751313974777,0.1917941,107630.0,107620.0,0.6096113]
[1751313975366,0.006,107630.0,107620.0,0.6096113]
[1751313975570,0.1917941,107630.0,107620.0,0.6096113]
[1751313975972,0.2239941,107630.0,107620.0,0.6096113]
[1751313976373,0.64067026,107630.0,107620.0,0.6096113]
[1751313976683,0.54067026,107630.0,107620.0,0.6096113]
[1751313977680,0.64067026,107630.0,107620.0,0.6096113]
[1751313980785,0.64067026,107630.0,107620.0,0.5772113]
[1751313981082,0.64067026,107630.0,107620.0,0.5466113]
[1751313981289,0.67337026,107630.0,107620.0,0.5466113]
[1751313981878,0.67337026,107630.0,107620.0,0.1858113]
[1751313984797,1.03417026,107630.0,107620.0,0.1858113]
[1751313987097,1.03417026,107630.0,107620.0,0.21351646]
[1751313989199,1.08953977,107630.0,107620.0,0.2167113]
[1751313989698,0.95683977,107630.0,107620.0,0.2167113]
[1751313989899,1.05683977,107630.0,107620.0,0.2477113]
[1751313993595,0.09356951,107630.0,107620.0,0.2477113]
[1751313993792,0.59848,107630.0,107620.0,0.6388113]
[1751313993992,0.59848,107630.0,107620.0,0.95548746]
[1751313994290,0.59848,107630.0,107620.0,0.98319262]
[1751313994989,0.006,107630.0,107620.0,0.98319262]
[1751313995592,0.05536951,107640.0,107630.0,0.1857941]
[1751313995898,0.92646101,107650.0,107640.0,0.1857768]
[1751313996100,0.9710915,107650.0,107640.0,0.64852663]
[1751313996302,1.026821,107650.0,107640.0,0.64852663]
[1751313996798,0.9803774,107650.0,107640.0,0.64852663]
[1751313996998,0.3414971,107650.0,107640.0,0.64852663]
[1751313997201,0.8338571,107650.0,107640.0,0.6393768]
[1751313998197,0.8378571,107650.0,107640.0,0.6393768]
[1751313998896,1.15453326,107650.0,107640.0,0.6393768]
[1751313999100,0.56217326,107650.0,107640.0,0.6393768]
[1751313999805,0.50644376,107650.0,107640.0,0.6393768]
[1751314000803,0.60644376,107650.0,107640.0,0.6393768]
[1751314001503,0.50644376,107650.0,107640.0,0.6393768]
[1751314001810,0.004,107650.0,107640.0,0.6393768]
[1751314003911,0.1897595,107650.0,107640.0,0.6393768]
[1751314005309,0.004,107650.0,107640.0,0.6393768]
[1751314005509,0.1897595,107650.0,107640.0,0.6393768]
[1751314007412,0.1897595,107650.0,107640.0,0.6084768]
[1751314007612,0.1897595,107650.0,107640.0,0.5465768]
[1751314008708,0.004,107650.0,107640.0,0.5465768]
[1751314008914,0.1897595,107650.0,107640.0,0.5465768]
[1751314009217,0.004,107650.0,107640.0,1.22325296]
[1751314011817,0.15668205,107660.0,107650.0,0.1857595]
[1751314012016,0.34056432,107660.0,107650.0,0.86422858]
[1751314012213,0.34056432,107660.0,107650.0,0.54755242]
[1751314013019,0.15482202,107660.0,107650.0,0.54755242]
[1751314013219,0.34456432,107660.0,107650.0,0.54755242]
[1751314013519,0.24456432,107660.0,107650.0,0.54755242]
[1751314013815,0.1897423,107660.0,107650.0,0.54755242]
[1751314014506,0.004,107660.0,107650.0,1.24422858]
[1751314014713,1.47270319,107680.0,107670.0,0.185725]
[1751314014914,0.9702643,107680.0,107670.0,0.546525]
[1751314015115,0.9702643,107680.0,107670.0,0.18622146]
[1751314015320,1.28694046,107680.0,107670.0,0.54702146]
[1751314015724,0.3785843,107680.0,107670.0,0.54702146]
[1751314016022,0.9237939,107680.0,107670.0,0.54702146]
[1751314016523,0.9237539,107680.0,107670.0,0.54702146]
[1751314017223,0.9237539,107680.0,107670.0,0.6216467]
[1751314018523,0.3321539,107680.0,107670.0,0.6216467]
[1751314019627,0.2857078,107680.0,107670.0,0.6216467]
[1751314021423,0.1,107680.0,107670.0,0.6216467]
[1751314021625,0.001,107690.0,107680.0,0.1857078]
[1751314021827,0.30633003,107710.0,107700.0,0.1856733]
[1751314022026,1.04406823,107710.0,107700.0,0.1856733]
[1751314022226,1.36074439,107710.0,107700.0,0.1856733]
[1751314022425,1.28650166,107710.0,107700.0,0.1856733]
[1751314022628,1.28650166,107710.0,107700.0,0.18616976]
[1751314025922,0.9698255,107710.0,107700.0,0.18616976]
[1751314026127,1.28650166,107710.0,107700.0,0.18616976]
[1751314030237,0.9698255,107710.0,107700.0,0.18616976]
[1751314030435,1.28650166,107710.0,107700.0,0.18616976]
[1751314032334,1.28606166,107710.0,107700.0,0.18616976]
[1751314032534,0.2856561,107710.0,107700.0,1.21364592]
[1751314032735,0.8764961,107710.0,107700.0,1.21364592]
[1751314033035,0.8764961,107710.0,107700.0,0.86364592]
[1751314033236,0.8764961,107710.0,107700.0,0.54696976]
[1751314036538,0.8764961,107710.0,107700.0,0.91696976]
[1751314037139,0.8764961,107710.0,107700.0,1.23364592]
[1751314037342,0.59084,107710.0,107700.0,1.23364592]
[1751314037637,0.001,107720.0,107710.0,0.1856561]
[1751314037938,0.8772388,107720.0,107710.0,1.23523226]
[1751314038140,0.8772388,107720.0,107710.0,1.23572872]
[1751314038734,0.2866388,107720.0,107710.0,1.23572872]
[1751314039137,0.1866388,107720.0,107710.0,1.23572872]
[1751314041044,0.001,107720.0,107710.0,1.23572872]
[1751314041250,0.7760616,107730.0,107720.0,0.3248597]
[1751314041433,0.7760616,107730.0,107720.0,1.35393586]
[1751314041434,0.69044,107730.0,107720.0,1.35393586]
[1751314041636,0.41029389,107740.0,107730.0,0.1856216]
[1751314041841,1.10073389,107740.0,107730.0,0.5464216]
[1751314042144,0.46388859,107740.0,107730.0,0.5464216]
[1751314042342,1.02418859,107740.0,107730.0,0.57851806]
[1751314043345,1.02418859,107740.0,107730.0,0.6520617]
[1751314044237,1.34074475,107740.0,107730.0,0.00049646]
[1751314044437,1.38486859,107740.0,107730.0,0.00049646]
[1751314044639,0.0464134,107720.0,107700.0,0.1392507]
[1751314044840,1.69264696,107720.0,107710.0,0.1856561]
[1751314045039,1.69227518,107720.0,107710.0,0.18615256]
[1751314045239,1.72337518,107720.0,107710.0,0.18615256]
[1751314045444,1.39297518,107720.0,107710.0,0.18615256]
[1751314045645,1.39297518,107720.0,107710.0,0.21715256]
[1751314046643,1.22299496,107720.0,107710.0,0.21715256]
[1751314046842,0.28739989,107730.0,107720.0,0.1856388]
[1751314047037,0.87759989,107730.0,107720.0,0.2496388]
[1751314047349,0.83119379,107730.0,107720.0,0.6404388]
[1751314047752,0.93119379,107730.0,107720.0,0.6404388]
[1751314047953,0.8758308,107730.0,107720.0,0.6404388]
[1751314048253,0.9062308,107730.0,107720.0,0.6404388]
[1751314048758,0.8062308,107730.0,107720.0,0.6404388]
[1751314048958,0.9062308,107730.0,107720.0,0.6404388]
[1751314049253,0.96159379,107730.0,107720.0,0.6404388]
[1751314049454,0.9062308,107730.0,107720.0,0.6404388]
[1751314049652,1.22290696,107730.0,107720.0,0.6404388]
[1751314050254,0.9062308,107730.0,107720.0,0.6104388]
[1751314050457,1.25320696,107730.0,107720.0,0.6104388]
[1751314051155,1.22290696,107730.0,107720.0,0.6104388]
[1751314051354,1.22290696,107730.0,107720.0,0.6411388]
[1751314051557,0.9062308,107730.0,107720.0,0.6411388]
[1751314051960,0.3160308,107730.0,107720.0,0.6411388]
[1751314052256,1.22274696,107730.0,107720.0,0.5464388]
[1751314052555,1.25524696,107730.0,107720.0,0.5464388]
[1751314053157,0.9385708,107730.0,107720.0,0.56325252]
[1751314053454,1.25524696,107730.0,107720.0,0.56325252]
[1751314055661,1.25524696,107730.0,107720.0,0.59575252]
[1751314055952,0.9385708,107730.0,107720.0,0.59575252]
[1751314056157,1.25524696,107730.0,107720.0,0.59575252]
[1751314058257,0.9385708,107730.0,107720.0,0.59575252]
[1751314058450,1.25524696,107730.0,107720.0,0.59575252]
[1751314061055,1.31060995,107730.0,107720.0,0.59575252]
[1751314063751,0.99393379,107730.0,107720.0,0.59575252]
[1751314064254,1.31060995,107730.0,107720.0,0.59575252]
[1751314066359,1.67140995,107730.0,107720.0,0.04931372]
[1751314066554,0.1856388,107720.0,107710.0,0.31006426]
[1751314066755,1.11295892,107720.0,107710.0,0.27896426]
[1751314068762,1.11295892,107720.0,107710.0,0.30986426]
[1751314071064,1.62071112,107720.0,107710.0,0.00049646]
[1751314071270,1.67635508,107720.0,107710.0,0.00049646]
[1751314075268,1.67635508,107720.0,107710.0,0.18615256]
[1751314075567,1.35967892,107720.0,107710.0,0.18615256]
[1751314076366,0.9873588,107720.0,107710.0,0.18615256]
[1751314076669,0.69489576,107730.0,107720.0,0.1856388]
[1751314076870,1.02333576,107730.0,107720.0,0.2174388]
[1751314077058,0.9676918,107730.0,107720.0,0.2485388]
[1751314077660,1.28436796,107730.0,107720.0,0.2485388]
[1751314078160,1.28436796,107730.0,107720.0,0.24903526]
[1751314078466,1.64516796,107730.0,107720.0,0.24903526]
[1751314078668,1.28436796,107730.0,107720.0,0.24903526]
[1751314080069,1.34001192,107730.0,107720.0,0.24903526]
[1751314083473,1.02333576,107730.0,107720.0,0.24903526]
[1751314083770,1.34001192,107730.0,107720.0,0.24903526]
[1751314084564,1.29360272,107730.0,107720.0,0.24903526]
[1751314085463,0.70436272,107730.0,107720.0,0.60983526]
[1751314085772,1.23767876,107730.0,107720.0,0.60983526]
[1751314085971,0.97664656,107730.0,107720.0,0.60983526]
[1751314086174,0.97660656,107730.0,107720.0,0.60983526]
[1751314086372,0.9209626,107730.0,107720.0,0.24903526]
[1751314086873,1.23763876,107730.0,107720.0,0.24903526]
[1751314087073,0.9209626,107730.0,107720.0,0.24903526]
[1751314087274,1.23763876,107730.0,107720.0,0.24903526]
[1751314092683,1.26803876,107730.0,107720.0,0.24903526]
[1751314093378,2.19195492,107730.0,107720.0,0.00049646]
[1751314093677,2.06040731,107730.0,107720.0,0.00049646]
[1751314095990,0.1856561,107710.0,107700.0,0.06490389]
[1751314096292,1.19089226,107710.0,107700.0,0.21311747]
[1751314096680,0.8742161,107710.0,107700.0,0.27691747]
[1751314096993,1.19089226,107710.0,107700.0,0.27691747]
[1751314097192,1.22339226,107710.0,107700.0,0.24441747]
[1751314097492,1.25629226,107710.0,107700.0,0.24441747]
[1751314097695,1.25629226,107710.0,107700.0,0.2169733]
[1751314100695,1.25629226,107710.0,107700.0,0.1856733]
[1751314100896,1.25629226,107710.0,107690.0,0.57983891]
[1751314100897,0.1856733,107700.0,107690.0,0.79591271]
[1751314101094,0.60234946,107700.0,107690.0,0.79591271]
[1751314101992,0.60234946,107700.0,107690.0,0.74949151]
[1751314102193,0.64201374,107700.0,107690.0,0.74949151]
[1751314102492,0.88829374,107700.0,107690.0,0.5464738]
[1751314102697,0.1856905,107690.0,107680.0,0.77026227]
[1751314102892,1.22092666,107690.0,107680.0,0.73986227]
[1751314103087,1.22092666,107690.0,107680.0,0.70277433]
[1751314103494,1.22092666,107690.0,107680.0,0.57783643]
[1751314103686,1.61482666,107690.0,107680.0,0.00092863]
[1751314107002,1.61482666,107690.0,107680.0,0.00392863]
[1751314108005,1.61482666,107690.0,107680.0,0.00192863]
[1751314108500,1.61482666,107690.0,107680.0,0.00092863]
[1751314111295,0.99336666,107690.0,107680.0,0.18663643]
[1751314111495,1.82788666,107690.0,107680.0,0.25103643]
[1751314111707,1.82788666,107690.0,107680.0,0.06532863]
[1751314112408,1.82788666,107690.0,107680.0,0.25103643]
[1751314112706,1.88353062,107690.0,107680.0,0.25103643]
[1751314112902,1.82788666,107690.0,107680.0,0.25103643]
[1751314113205,1.88353062,107690.0,107680.0,0.00092863]
[1751314113511,1.91363062,107690.0,107680.0,0.00092863]
[1751314115709,1.85798666,107690.0,107680.0,0.00092863]
[1751314119614,1.85798666,107690.0,107680.0,0.03102863]
[1751314123119,1.82768666,107690.0,107680.0,0.21673643]
[1751314123319,1.79748666,107690.0,107680.0,0.24813643]
[1751314123519,0.8928505,107690.0,107680.0,0.24813643]
[1751314123717,1.1199705,107690.0,107680.0,0.60893643]
[1751314124119,1.43664666,107690.0,107680.0,0.60893643]
[1751314124623,1.25095616,107690.0,107680.0,0.60893643]
[1751314124813,1.43664666,107690.0,107680.0,0.60893643]
[1751314125014,1.25095616,107690.0,107680.0,0.60893643]
[1751314125316,1.31158472,107700.0,107690.0,0.1856905]
[1751314125513,1.22202856,107700.0,107690.0,0.2796905]
[1751314126715,1.1199133,107700.0,107690.0,0.6404905]
[1751314126923,1.43658946,107700.0,107690.0,0.6404905]
[1751314127418,1.43658946,107700.0,107690.0,0.2796905]
[1751314130625,0.84870946,107700.0,107690.0,0.2796905]
[1751314130927,1.43642946,107700.0,107690.0,0.2796905]
[1751314131118,0.84870946,107700.0,107690.0,0.2796905]
[1751314131320,1.19002946,107700.0,107690.0,0.2796905]
[1751314139332,0.8733533,107700.0,107690.0,0.2796905]
[1751314139630,1.19002946,107700.0,107690.0,0.2796905]
[1751314140331,1.22042946,107700.0,107690.0,0.2487905]
[1751314144646,1.22042946,107700.0,107690.0,0.0631]
[1751314144848,0.2856905,107690.0,107680.0,0.64026933]
[1751314145036,0.63506666,107690.0,107680.0,0.5619396]
[1751314145242,0.66746666,107690.0,107680.0,0.54742233]
[1751314145443,0.66746666,107690.0,107680.0,0.5619393]
[1751314145643,0.60236666,107690.0,107680.0,0.5951393]
[1751314145936,0.8728105,107690.0,107680.0,0.6284393]
[1751314147848,1.18948666,107690.0,107680.0,0.6284393]
[1751314148351,0.8728105,107690.0,107680.0,0.6284393]
[1751314149751,0.8728105,107690.0,107680.0,0.61392233]
[1751314151745,0.8728105,107690.0,107680.0,0.6284393]
[1751314154255,0.8728105,107690.0,107680.0,0.61392233]
[1751314154847,0.9054105,107690.0,107680.0,0.61392233]
[1751314155046,0.96105446,107690.0,107680.0,0.61392233]
[1751314161154,0.9054105,107690.0,107680.0,0.64174219]
[1751314164564,0.9054105,107690.0,107680.0,0.28094219]
[1751314164863,0.9054105,107690.0,107680.0,0.64174219]
[1751314166865,1.22208666,107690.0,107680.0,0.60944219]
[1751314167067,1.28248666,107690.0,107680.0,0.57624219]
[1751314171371,1.28248666,107690.0,107680.0,0.60644219]
[1751314175777,1.20299984,107690.0,107680.0,0.84363153]
[1751314176072,0.9658105,107690.0,107680.0,0.60644219]
[1751314176280,1.20299984,107690.0,107680.0,0.87663153]
[1751314176673,1.17269984,107690.0,107680.0,0.63944219]
[1751314176972,1.17269984,107690.0,107680.0,0.87663153]
[1751314180583,1.14259984,107690.0,107680.0,0.87663153]
[1751314181179,1.14259984,107690.0,107680.0,0.51583153]
[1751314181378,1.14259984,107690.0,107680.0,0.87663153]
[1751314186184,0.9054105,107690.0,107680.0,0.87663153]
[1751314186481,1.14259984,107690.0,107680.0,0.87663153]
[1751314186680,1.14259984,107690.0,107680.0,0.90983153]
[1751314187779,1.14259984,107690.0,107680.0,1.52702087]
[1751314187780,0.6856,107690.0,107680.0,1.52702087]
[1751314187976,0.8712905,107690.0,107680.0,1.56410881]
[1751314188284,0.68556,107690.0,107680.0,1.56410881]
[1751314189184,0.68556,107690.0,107680.0,0.94691947]
[1751314189376,0.8712505,107690.0,107680.0,0.94691947]
[1751314189776,0.68556,107690.0,107680.0,0.94691947]
[1751314190084,1.10843984,107690.0,107680.0,0.70973013]
[1751314190982,1.13973984,107690.0,107680.0,0.70973013]
[1751314191785,1.21883681,107690.0,107680.0,0.70973013]